bitfinex/quotes_BTCUSD_20241202
["timestamp","ask_amount","ask_price","bid_price","bid_amount"]
[1733106687794,0.204653,97726.0,97723.0,3.089]
[1733106688100,0.204658,97724.0,97723.0,2.977]
[1733106688303,0.204658,97724.0,97723.0,5.05]
[1733106688514,0.204658,97724.0,97723.0,3.996]
[1733106688728,0.204658,97724.0,97723.0,3.947]
[1733106688940,0.204658,97724.0,97723.0,3.49]
[1733106688941,0.30750321,97724.0,97723.0,3.49]
[1733106689150,0.39030321,97724.0,97722.0,0.0017324]
[1733106689383,0.25454003,97723.0,97722.0,0.0017324]
[1733106689605,0.25284521,97723.0,97722.0,0.0017324]
[1733106690918,0.26084521,97723.0,97722.0,0.0017324]
[1733106691357,0.25284521,97723.0,97722.0,0.0017324]
[1733106691799,0.27815435,97723.0,97722.0,0.0017324]
[1733106692286,0.27315435,97723.0,97722.0,0.0017324]
[1733106692708,0.28215435,97723.0,97722.0,0.0017324]
[1733106692939,0.27315435,97723.0,97722.0,0.0017324]
[1733106693413,0.28215435,97723.0,97722.0,0.0017324]
[1733106693610,0.28715435,97723.0,97722.0,0.0017324]
[1733106694897,0.43265435,97723.0,97722.0,0.0017324]
[1733106695098,0.51215435,97723.0,97722.0,0.0017324]
[1733106696003,0.50315435,97723.0,97722.0,0.0017324]
[1733106696451,0.51215435,97723.0,97722.0,0.0017324]
[1733106696672,0.49815435,97723.0,97722.0,0.0017324]
[1733106696899,0.50715435,97723.0,97722.0,0.0017324]
[1733106697168,0.51315435,97723.0,97722.0,0.0017324]
[1733106697383,0.50415435,97723.0,97722.0,0.0017324]
[1733106697641,0.49815435,97723.0,97722.0,0.0017324]
[1733106697833,0.50415435,97723.0,97722.0,0.0017324]
[1733106698053,0.51315435,97723.0,97722.0,0.0017324]
[1733106700170,0.63898581,97723.0,97722.0,0.0017324]
[1733106700372,0.73898581,97723.0,97722.0,0.0017324]
[1733106701178,0.51315435,97723.0,97722.0,0.0017324]
[1733106701405,0.40415435,97723.0,97722.0,0.0017324]
[1733106701769,0.39815435,97723.0,97722.0,0.0017324]
[1733106703594,0.39915435,97723.0,97722.0,0.0017324]
[1733106703815,0.39815435,97723.0,97722.0,0.0017324]
[1733106704024,0.50715435,97723.0,97722.0,0.0017324]
[1733106704242,0.49915435,97723.0,97722.0,0.0017324]
[1733106704671,0.50815435,97723.0,97722.0,0.0017324]
[1733106704866,0.52415197,97723.0,97722.0,0.0017324]
[1733106705208,0.51415435,97723.0,97722.0,0.0017324]
[1733106705620,0.204718,97695.0,97694.0,0.0002464]
[1733106706262,0.20641282,97695.0,97694.0,0.0002464]
[1733106706700,0.20641282,97695.0,97694.0,3.2912464]
[1733106706929,0.2047786,97695.0,97694.0,3.2912464]
[1733106707146,6.06e-05,97695.0,97694.0,3.2912464]
[1733106707574,0.0030606,97695.0,97694.0,3.2912464]
[1733106707818,0.0050606,97695.0,97694.0,3.2912464]
[1733106708028,0.0050606,97695.0,97694.0,3.3382464]
[1733106708250,0.0050606,97695.0,97694.0,3.4150464]
[1733106709553,0.0020606,97695.0,97694.0,3.4150464]
[1733106709766,6.06e-05,97695.0,97694.0,3.4150464]
[1733106709970,0.0020606,97695.0,97694.0,3.4150464]
[1733106710197,0.0010606,97695.0,97694.0,3.4150464]
[1733106710610,6.06e-05,97695.0,97694.0,3.4150464]
[1733106711709,6.06e-05,97695.0,97694.0,1.2322464]
[1733106711903,6.06e-05,97695.0,97694.0,0.6512464]
[1733106712635,6.06e-05,97695.0,97694.0,0.0002464]
[1733106712849,0.00175542,97695.0,97694.0,0.0002464]
[1733106714173,0.10660063,97695.0,97694.0,0.0002464]
[1733106714583,0.10860063,97695.0,97694.0,0.0002464]
[1733106715222,0.11957719,97695.0,97694.0,0.0002464]
[1733106715886,0.11757719,97695.0,97694.0,0.0002464]
[1733106716111,0.11557719,97695.0,97694.0,0.0002464]
[1733106716335,0.11857719,97695.0,97694.0,0.0002464]
[1733106716585,0.12057719,97695.0,97694.0,0.0002464]
[1733106720709,0.12057719,97695.0,97680.0,0.1993796]
[1733106720937,0.204745,97683.0,97680.0,0.1993796]
[1733106721162,0.00169482,97682.0,97677.0,0.00081347]
[1733106721371,0.409496,97681.0,97678.0,5.05]
[1733106722444,0.204748,97681.0,97678.0,5.05]
[1733106722658,0.204748,97681.0,97677.0,0.00081347]
[1733106722659,0.00169482,97680.0,97679.0,4.012]
[1733106722924,0.409496,97681.0,97679.0,1.213]
[1733106723130,0.204737,97686.0,97678.0,1.604]
[1733106723281,0.10284521,97694.0,97679.0,0.0487]
[1733106723282,0.001,97681.0,97679.0,0.0487]
[1733106723496,0.001,97681.0,97680.0,5.05]
[1733106724035,0.204735,97687.0,97680.0,5.05]
[1733106724451,6.06e-05,97695.0,97681.0,0.077]
[1733106724678,0.00175542,97695.0,97687.0,0.204734]
[1733106724889,6.06e-05,97695.0,97688.0,5.127]
[1733106725092,6.06e-05,97695.0,97689.0,5.254731]
[1733106725317,6.06e-05,97695.0,97690.0,5.05]
[1733106725498,6.06e-05,97695.0,97689.0,5.05]
[1733106725950,6.06e-05,97695.0,97691.0,0.204727]
[1733106726157,6.06e-05,97695.0,97692.0,5.05]
[1733106726825,0.0010606,97695.0,97692.0,5.05]
[1733106727046,6.06e-05,97695.0,97692.0,5.05]
[1733106727250,0.0020606,97695.0,97692.0,5.05]
[1733106727469,0.0050606,97695.0,97693.0,0.204722]
[1733106727698,0.0050606,97695.0,97694.0,5.05]
[1733106727903,0.0030606,97695.0,97691.0,5.05]
[1733106728888,0.2077806,97695.0,97691.0,5.05]
[1733106729094,0.0030606,97695.0,97691.0,5.05]
[1733106729316,0.0020606,97695.0,97691.0,5.254726]
[1733106729494,0.0060606,97695.0,97692.0,5.05]
[1733106729898,6.06e-05,97695.0,97692.0,5.05]
[1733106730106,0.0020606,97695.0,97692.0,5.05]
[1733106730322,0.0040606,97695.0,97692.0,5.05]
[1733106730543,0.0020606,97695.0,97692.0,5.05]
[1733106730766,6.06e-05,97695.0,97692.0,5.05]
[1733106730965,0.0050606,97695.0,97691.0,5.05]
[1733106732410,6.06e-05,97695.0,97691.0,5.05]
[1733106732661,0.0020606,97695.0,97692.0,0.204725]
[1733106733005,0.0020606,97695.0,97694.0,0.20472]
[1733106733227,0.0020606,97695.0,97694.0,5.33322]
[1733106733458,0.0040606,97695.0,97694.0,5.33322]
[1733106733900,0.0020606,97695.0,97694.0,5.33322]
[1733106734141,0.0030606,97695.0,97694.0,5.33322]
[1733106734373,0.0070606,97695.0,97694.0,5.33322]
[1733106735742,6.06e-05,97695.0,97694.0,5.33322]
[1733106735945,0.0027942,97695.0,97694.0,5.33322]
[1733106736382,0.0017942,97695.0,97694.0,5.33322]
[1733106736805,0.0027942,97695.0,97694.0,0.28322]
[1733106737031,0.0027942,97695.0,97694.0,5.33322]
[1733106737448,0.0017942,97695.0,97694.0,5.33322]
[1733106738831,0.0027942,97695.0,97694.0,5.33322]
[1733106740577,0.0027942,97695.0,97694.0,5.05]
[1733106740810,0.0027942,97695.0,97688.0,0.204733]
[1733106741037,0.0027942,97695.0,97689.0,5.05]
[1733106741676,0.0027942,97695.0,97690.0,0.204729]
[1733106741905,0.0027942,97695.0,97691.0,5.05]
[1733106742142,0.0027942,97695.0,97689.0,5.05]
[1733106742369,0.0017942,97695.0,97687.0,5.05]
[1733106742818,0.0017942,97695.0,97684.0,5.05]
[1733106743029,0.0017942,97695.0,97685.0,0.204739]
[1733106743253,0.0017942,97695.0,97686.0,5.05]
[1733106743474,0.0027942,97695.0,97686.0,5.05]
[1733106743705,0.0017942,97695.0,97686.0,5.05]
[1733106743938,0.0027942,97695.0,97686.0,5.05]
[1733106744152,0.0027942,97695.0,97687.0,0.204735]
[1733106744360,0.0017942,97695.0,97688.0,5.05]
[1733106744796,0.0017942,97695.0,97686.0,5.05]
[1733106745226,0.0017942,97695.0,97684.0,5.05]
[1733106745434,0.0017942,97695.0,97685.0,0.204739]
[1733106745648,0.0017942,97695.0,97686.0,5.05]
[1733106745855,0.0027942,97695.0,97686.0,5.05]
[1733106746117,0.0017942,97695.0,97686.0,5.05]
[1733106746339,0.0027942,97695.0,97686.0,5.05]
[1733106747469,0.0027942,97695.0,97689.0,0.204731]
[1733106747709,0.0027942,97695.0,97691.0,0.204727]
[1733106747946,0.0027942,97695.0,97693.0,0.454722]
[1733106748167,0.0027942,97695.0,97694.0,5.20181152]
[1733106748402,0.0027942,97695.0,97694.0,5.2]
[1733106748631,0.0017942,97695.0,97694.0,5.2]
[1733106749133,0.0027942,97695.0,97694.0,5.2]
[1733106749643,0.0027942,97695.0,97694.0,5.05]
[1733106749876,0.0017942,97695.0,97690.0,5.05]
[1733106750122,0.0017942,97695.0,97687.0,5.05]
[1733106750351,0.0017942,97695.0,97688.0,0.204733]
[1733106750577,0.0017942,97695.0,97690.0,0.204729]
[1733106750804,0.0017942,97695.0,97691.0,5.05]
[1733106751269,0.0017942,97695.0,97689.0,5.05]
[1733106752176,0.0017942,97695.0,97690.0,0.204729]
[1733106752389,0.0027942,97695.0,97691.0,5.05]
[1733106752883,0.0017942,97695.0,97691.0,5.05]
[1733106753103,0.0027942,97695.0,97691.0,5.05]
[1733106753313,0.0027942,97695.0,97689.0,5.05]
[1733106753521,0.0017942,97695.0,97685.0,5.3]
[1733106753742,0.0017942,97695.0,97686.0,5.46128573]
[1733106754011,0.0017942,97695.0,97688.0,0.204733]
[1733106754237,0.0017942,97695.0,97689.0,5.05]
[1733106755095,0.0017942,97695.0,97687.0,5.05]
[1733106755344,0.0017942,97695.0,97686.0,5.05]
[1733106756025,0.0017942,97695.0,97684.0,0.01111797]
[1733106756026,0.0017942,97695.0,97685.0,5.254738]
[1733106756231,0.0027942,97695.0,97686.0,5.05]
[1733106756455,0.0017942,97695.0,97686.0,5.05]
[1733106756906,0.0027942,97695.0,97685.0,0.454738]
[1733106757027,0.0027942,97695.0,97686.0,5.05]
[1733106757690,0.0027942,97695.0,97687.0,0.204735]
[1733106757891,0.0027942,97695.0,97688.0,5.05]
[1733106758091,0.0027942,97695.0,97686.0,5.05]
[1733106758987,0.0027942,97695.0,97687.0,0.204735]
[1733106759220,0.0027942,97695.0,97688.0,5.05]
[1733106759635,0.0017942,97695.0,97688.0,5.05]
[1733106760052,0.0027942,97695.0,97688.0,5.05]
[1733106761862,0.0027942,97695.0,97689.0,0.204731]
[1733106762048,0.0027942,97695.0,97690.0,5.05]
[1733106762286,0.0027942,97695.0,97691.0,0.204727]
[1733106762498,0.0027942,97695.0,97692.0,5.05]
[1733106762711,0.0027942,97695.0,97693.0,0.204722]
[1733106762932,0.0027942,97695.0,97694.0,5.05]
[1733106763152,0.0017942,97695.0,97694.0,5.3811]
[1733106763619,0.0017942,97695.0,97694.0,5.5311]
[1733106763849,0.0017942,97695.0,97694.0,5.2811]
[1733106764056,0.0017942,97695.0,97694.0,5.5311]
[1733106764714,0.0017942,97695.0,97694.0,5.05]
[1733106764923,0.0017942,97695.0,97694.0,5.3]
[1733106765135,0.0017942,97695.0,97694.0,5.31110484]
[1733106769610,0.0017942,97695.0,97694.0,5.43930484]
[1733106771141,0.0017942,97695.0,97694.0,5.47122568]
[1733106771802,0.0017942,97695.0,97694.0,0.38930484]
[1733106772076,0.0017942,97695.0,97694.0,5.43930484]
[1733106774906,0.0017942,97695.0,97694.0,5.39100484]
[1733106777475,0.0017942,97695.0,97694.0,5.42462719]
[1733106781009,0.0017942,97695.0,97694.0,5.5274724]
[1733106781447,0.0017942,97695.0,97694.0,5.559394]
[1733106782323,0.0017942,97695.0,97694.0,5.709394]
[1733106783078,0.0017942,97695.0,97694.0,0.659394]
[1733106783321,0.0017942,97695.0,97694.0,0.728594]
[1733106783611,0.0027942,97695.0,97694.0,5.778594]
[1733106784322,0.0017942,97695.0,97694.0,5.778594]
[1733106784564,0.0017942,97695.0,97694.0,6.128594]
[1733106784805,0.0027942,97695.0,97694.0,6.128594]
[1733106785047,0.0037942,97695.0,97694.0,6.128594]
[1733106786019,0.0037942,97695.0,97694.0,5.755594]
[1733106786265,0.0037942,97695.0,97694.0,5.49302644]
[1733106786512,0.0037942,97695.0,97694.0,5.06110484]
[1733106786995,0.0027942,97695.0,97694.0,5.06110484]
[1733106788187,0.0037942,97695.0,97694.0,5.06110484]
[1733106788475,0.0027942,97695.0,97694.0,5.06110484]
[1733106788711,0.0027942,97695.0,97694.0,5.31110484]
[1733106790617,0.0017942,97695.0,97694.0,5.31110484]
[1733106790869,0.0027942,97695.0,97694.0,5.31110484]
[1733106791572,0.0017942,97695.0,97694.0,5.31110484]
[1733106792038,0.0027942,97695.0,97694.0,5.31110484]
[1733106792273,0.0027942,97695.0,97694.0,0.26110484]
[1733106792974,0.0027942,97695.0,97688.0,0.06]
[1733106793217,0.0452,97694.0,97688.0,0.06]
[1733106793453,0.1278,97694.0,97688.0,0.06]
[1733106793694,0.00169482,97693.0,97688.0,0.06]
[1733106793935,0.00169482,97693.0,97689.0,0.204731]
[1733106794172,0.00169482,97693.0,97688.0,0.06]
[1733106795596,0.13049482,97694.0,97688.0,0.06]
[1733106795831,0.001,97693.0,97688.0,0.06]
[1733106797004,0.1278,97694.0,97688.0,0.06]
[1733106797242,0.001,97693.0,97688.0,0.06]
[1733106797924,0.002,97693.0,97688.0,0.06]
[1733106798382,0.002,97693.0,97689.0,0.204731]
[1733106799150,0.002,97693.0,97689.0,0.409462]
[1733106799620,0.002,97693.0,97692.0,0.25]
[1733106800580,0.0017942,97695.0,97693.0,0.204722]
[1733106801732,0.0017942,97695.0,97694.0,5.33829691]
[1733106801969,0.0017942,97695.0,97694.0,5.4691849]
[1733106803826,0.0027942,97695.0,97694.0,5.4711849]
[1733106804102,0.0037942,97695.0,97694.0,5.4751849]
[1733106804332,0.0027942,97695.0,97694.0,5.4731849]
[1733106805256,0.0037942,97695.0,97694.0,5.4521849]
[1733106805749,0.0037942,97695.0,97694.0,4.1651849]
[1733106806007,0.0037942,97695.0,97694.0,4.13328528]
[1733106806471,0.0037942,97695.0,97694.0,4.02028528]
[1733106806707,0.0027942,97695.0,97694.0,4.01628528]
[1733106806931,0.0017942,97695.0,97694.0,3.83348528]
[1733106807158,0.0037942,97695.0,97694.0,3.74448528]
[1733106807388,0.0027942,97695.0,97694.0,0.002]
[1733106807621,0.0027942,97695.0,97694.0,0.004]
[1733106807869,0.0027942,97695.0,97694.0,0.006]
[1733106808093,0.0037942,97695.0,97694.0,0.006]
[1733106808310,0.0037942,97695.0,97694.0,0.00381156]
[1733106808537,0.0017942,97695.0,97694.0,0.00181156]
[1733106808779,0.0017942,97695.0,97694.0,0.00381156]
[1733106809235,0.0027942,97695.0,97694.0,0.00781156]
[1733106810587,0.0017942,97695.0,97694.0,0.00181156]
[1733106810772,0.0027942,97695.0,97694.0,0.00781156]
[1733106816658,0.0017942,97695.0,97694.0,0.00381156]
[1733106816852,0.0017942,97695.0,97694.0,0.00581156]
[1733106817124,0.0027942,97695.0,97694.0,0.00781156]
[1733106817607,0.0027942,97695.0,97694.0,0.006]
[1733106818297,0.0017942,97695.0,97693.0,0.21547728]
[1733106818544,0.0027942,97695.0,97694.0,0.006]
[1733106819938,0.0027942,97695.0,97694.0,0.004]
[1733106820370,0.0017942,97695.0,97693.0,0.002]
[1733106820595,0.0017942,97695.0,97688.0,0.06]
[1733106820780,0.07899482,97694.0,97693.0,0.004]
[1733106821255,0.12429482,97694.0,97693.0,0.004]
[1733106821745,0.12429482,97694.0,97688.0,0.06]
[1733106822019,0.12429482,97694.0,97688.0,0.062]
[1733106822675,0.1226,97694.0,97688.0,0.062]
[1733106822909,0.1226,97694.0,97688.0,0.266732]
[1733106823186,0.12429482,97694.0,97688.0,0.266732]
[1733106823397,0.1226,97694.0,97688.0,0.266732]
[1733106823617,0.1226,97694.0,97688.0,0.264732]
[1733106823833,0.1246,97694.0,97688.0,0.264732]
[1733106824050,0.1236,97694.0,97688.0,0.264732]
[1733106824268,0.12429482,97694.0,97688.0,0.264732]
[1733106824493,0.1226,97694.0,97690.0,0.204728]
[1733106825188,0.1226,97694.0,97688.0,0.265732]
[1733106825427,0.1226,97694.0,97688.0,0.061]
[1733106826100,0.1226,97694.0,97689.0,0.204731]
[1733106827461,0.1226,97694.0,97688.0,0.06]
[1733106827933,0.1226,97694.0,97689.0,0.001]
[1733106828755,0.12198544,97694.0,97689.0,0.001]
[1733106829446,0.00169482,97693.0,97689.0,0.001]
[1733106830547,0.00169482,97693.0,97688.0,0.06]
[1733106830769,0.00169482,97693.0,97689.0,0.001]
[1733106831033,0.204725,97692.0,97689.0,0.001]
[1733106831259,0.204729,97690.0,97689.0,0.001]
[1733106831481,0.35786903,97690.0,97688.0,0.06]
[1733106831719,0.23564003,97689.0,97688.0,0.06]
[1733106831975,0.23394521,97689.0,97688.0,0.061]
[1733106832195,0.23394521,97689.0,97688.0,0.06]
[1733106834044,0.24094521,97689.0,97688.0,0.06]
[1733106834269,0.24494521,97689.0,97688.0,0.06]
[1733106836145,0.34494521,97689.0,97688.0,0.06]
[1733106837273,0.36794521,97689.0,97688.0,0.06]
[1733106837569,0.36794521,97689.0,97688.0,0.03701899]
[1733106837978,0.35694521,97689.0,97688.0,0.03701899]
[1733106838190,0.36494521,97689.0,97688.0,0.03701899]
[1733106838423,0.36994521,97689.0,97688.0,0.03701899]
[1733106839540,0.36494521,97689.0,97688.0,0.03701899]
[1733106840011,0.36594521,97689.0,97688.0,0.03701899]
[1733106840458,0.24294521,97689.0,97688.0,0.03701899]
[1733106840675,0.23394521,97689.0,97688.0,0.03701899]
[1733106840898,0.23494521,97689.0,97688.0,0.03701899]
[1733106841143,0.23594521,97689.0,97688.0,0.03701899]
[1733106841388,0.23494521,97689.0,97688.0,0.03701899]
[1733106841620,0.23394521,97689.0,97688.0,0.03701899]
[1733106841838,0.23494521,97689.0,97688.0,0.03701899]
[1733106842287,0.1321,97689.0,97688.0,0.03701899]
[1733106842516,0.13379482,97689.0,97688.0,0.03701899]
[1733106842775,0.13479482,97689.0,97688.0,0.03701899]
[1733106843207,0.23664003,97689.0,97688.0,0.03701899]
[1733106843423,0.24294521,97689.0,97688.0,0.03701899]
[1733106843656,0.24094521,97689.0,97688.0,0.03701899]
[1733106844577,0.24494521,97689.0,97688.0,0.03701899]
[1733106844840,0.23794521,97689.0,97688.0,0.03701899]
[1733106845532,0.33794521,97689.0,97688.0,0.03701899]
[1733106845754,0.33394521,97689.0,97688.0,0.03701899]
[1733106845992,0.33894521,97689.0,97688.0,0.03701899]
[1733106846210,0.34594521,97689.0,97688.0,0.03701899]
[1733106846444,0.33394521,97689.0,97688.0,0.03701899]
[1733106846931,0.34894521,97689.0,97688.0,0.03701899]
[1733106847399,0.33394521,97689.0,97688.0,0.03701899]
[1733106848339,0.35094521,97689.0,97688.0,0.03701899]
[1733106849477,0.34294521,97689.0,97688.0,0.03701899]
[1733106849690,0.33394521,97689.0,97688.0,0.03701899]
[1733106849895,0.33494521,97689.0,97688.0,0.03701899]
[1733106850561,0.33694521,97689.0,97688.0,0.03701899]
[1733106850774,0.33494521,97689.0,97688.0,0.03701899]
[1733106851042,0.33394521,97689.0,97688.0,0.03701899]
[1733106851236,0.33494521,97689.0,97688.0,0.03701899]
[1733106851451,0.33394521,97689.0,97688.0,0.03701899]
[1733106852876,0.33494521,97689.0,97688.0,0.03701899]
[1733106853351,0.48494521,97689.0,97688.0,0.03701899]
[1733106853837,0.48494521,97689.0,97688.0,0.00105468]
[1733106854080,0.48594521,97689.0,97688.0,1e-08]
[1733106854288,0.48394521,97689.0,97688.0,1e-08]
[1733106854512,0.48594521,97689.0,97688.0,1e-08]
[1733106855394,0.60894521,97689.0,97688.0,1e-08]
[1733106855603,0.60794521,97689.0,97688.0,1e-08]
[1733106855838,0.60694521,97689.0,97688.0,1e-08]
[1733106856046,0.60894521,97689.0,97688.0,1e-08]
[1733106856469,0.60794521,97689.0,97688.0,1e-08]
[1733106856721,0.60994521,97689.0,97688.0,1e-08]
[1733106857161,0.71277667,97689.0,97688.0,1e-08]
[1733106858478,0.60994521,97689.0,97688.0,1e-08]
[1733106860112,0.50994521,97689.0,97688.0,1e-08]
[1733106860344,0.60994521,97689.0,97688.0,1e-08]
[1733106861045,0.51703028,97689.0,97688.0,1e-08]
[1733106861895,0.51503028,97689.0,97688.0,1e-08]
[1733106862105,0.51403028,97689.0,97688.0,1e-08]
[1733106862329,0.51503028,97689.0,97688.0,1e-08]
[1733106862558,0.51603028,97689.0,97688.0,1e-08]
[1733106863233,0.51703028,97689.0,97688.0,1e-08]
[1733106863895,0.56203028,97689.0,97688.0,1e-08]
[1733106864599,0.58476177,97689.0,97688.0,1e-08]
[1733106864793,0.530248,97681.0,97680.0,0.0017336]
[1733106864994,0.65609321,97681.0,97680.0,0.0017336]
[1733106865217,0.70109321,97681.0,97680.0,0.0017336]
[1733106865888,0.71009321,97681.0,97680.0,0.0017336]
[1733106866324,0.81009321,97681.0,97680.0,0.0017336]
[1733106866532,0.373,97680.0,97679.0,4e-07]
[1733106866753,0.60314521,97680.0,97679.0,4e-07]
[1733106867795,0.60314521,97680.0,97677.0,0.00081347]
[1733106867796,0.4806,97678.0,97677.0,8.7e-07]
[1733106867993,0.60644521,97678.0,97677.0,8.7e-07]
[1733106869314,0.60581383,97678.0,97677.0,8.7e-07]
[1733106869528,0.60581383,97678.0,97672.0,0.0017318]
[1733106869529,0.45376862,97673.0,97672.0,0.0001617]
[1733106869747,0.55661383,97673.0,97672.0,0.0001617]
[1733106871056,0.60301383,97673.0,97672.0,0.0001617]
[1733106871502,0.60401383,97673.0,97672.0,0.0001617]
[1733106871715,0.62413086,97673.0,97672.0,0.0001617]
[1733106871943,0.62513086,97673.0,97672.0,0.0001617]
[1733106874380,0.09936862,97663.0,97639.0,0.0791]
[1733106874595,0.58169365,97663.0,97639.0,0.0791]
[1733106874814,0.57999883,97663.0,97639.0,0.0791]
[1733106875678,0.59705805,97663.0,97639.0,0.0791]
[1733106876640,0.67295805,97663.0,97639.0,0.0791]
[1733106876870,0.68366367,97663.0,97639.0,0.0791]
[1733106877295,0.09898186,97645.0,97629.0,0.0802]
[1733106877517,0.24898186,97631.0,97621.0,0.0802]
[1733106877726,0.204863,97626.0,97612.0,0.0802]
[1733106877943,0.10454003,97625.0,97612.0,0.0802]
[1733106879033,0.10465515,97625.0,97622.0,0.0489]
[1733106879268,0.10565515,97625.0,97622.0,0.0489]
[1733106879521,0.10665515,97625.0,97622.0,0.0489]
[1733106879969,0.10565515,97625.0,97622.0,0.0489]
[1733106880192,0.11465515,97625.0,97622.0,0.0489]
[1733106880435,0.11365515,97625.0,97622.0,0.0489]
[1733106881562,0.11465515,97625.0,97622.0,0.0489]
[1733106881970,0.11365515,97625.0,97622.0,0.0489]
[1733106882174,0.12065515,97625.0,97622.0,0.0489]
[1733106882385,0.01780994,97625.0,97624.0,0.0817328]
[1733106882628,0.01611512,97625.0,97624.0,0.0817328]
[1733106883691,0.00011512,97625.0,97624.0,0.0817328]
[1733106883927,0.00211512,97625.0,97624.0,0.0827328]
[1733106884392,0.00211512,97625.0,97624.0,0.0817328]
[1733106884620,0.00211512,97625.0,97624.0,0.0827328]
[1733106885088,0.00011512,97625.0,97624.0,0.0827328]
[1733106885298,0.00011512,97625.0,97624.0,0.0817328]
[1733106885526,0.00011512,97625.0,97624.0,0.0837328]
[1733106885734,0.00011512,97625.0,97624.0,0.0827328]
[1733106886182,0.09898186,97665.0,97629.0,0.00101814]
[1733106886432,0.1289,97687.0,97642.0,0.00101814]
[1733106886433,0.1,97666.0,97642.0,0.00101814]
[1733106886646,0.204823,97646.0,97637.0,0.0826]
[1733106886863,0.00169482,97645.0,97637.0,0.0826]
[1733106887810,0.00169482,97647.0,97637.0,0.0826]
[1733106888002,0.003,97645.0,97637.0,0.0826]
[1733106888213,0.00169482,97644.0,97637.0,0.0826]
[1733106888425,0.003,97644.0,97642.0,0.0786]
[1733106888654,0.003,97644.0,97643.0,0.0474]
[1733106888872,0.00169482,97657.0,97643.0,0.0474]
[1733106888873,0.001,97645.0,97644.0,0.204825]
[1733106889093,0.001,97645.0,97644.0,0.286325]
[1733106889786,0.001,97645.0,97644.0,0.0815]
[1733106890203,0.00169482,97646.0,97644.0,0.0815]
[1733106890433,0.005,97645.0,97644.0,0.0815]
[1733106890885,0.005,97645.0,97632.0,0.00101814]
[1733106890886,0.005,97645.0,97636.0,0.0799]
[1733106891141,0.204825,97644.0,97636.0,0.0799]
[1733106891353,0.00169482,97643.0,97636.0,0.08091814]
[1733106891562,0.00169482,97643.0,97636.0,0.0799]
[1733106891789,0.00169482,97643.0,97636.0,0.08091814]
[1733106892465,0.00169482,97644.0,97636.0,0.08091814]
[1733106892668,0.00169482,97643.0,97636.0,0.08091814]
[1733106893296,0.00269482,97643.0,97636.0,0.08091814]
[1733106893777,0.20752382,97643.0,97636.0,0.08091814]
[1733106893979,0.00269482,97643.0,97636.0,0.08091814]
[1733106894865,0.00369482,97643.0,97636.0,0.08091814]
[1733106899421,0.00369482,97643.0,97637.0,0.20484]
[1733106899606,0.002,97643.0,97637.0,0.20484]
[1733106900482,0.002,97643.0,97642.0,0.33634714]
[1733106900483,0.001,97643.0,97642.0,0.33634714]
[1733106900749,0.0017334,97645.0,97644.0,0.08321814]
[1733106902955,0.0017334,97645.0,97644.0,0.13263078]
[1733106903697,0.0067334,97645.0,97644.0,0.13081814]
[1733106903914,0.0017334,97645.0,97644.0,0.13081814]
[1733106904370,0.0027334,97645.0,97644.0,0.13181814]
[1733106904601,0.0027334,97645.0,97644.0,0.0822]
[1733106904828,0.0037334,97645.0,97644.0,0.0832]
[1733106905056,0.0027334,97645.0,97644.0,0.0832]
[1733106905279,0.10557861,97645.0,97644.0,0.001]
[1733106905491,0.10557861,97645.0,97634.0,0.0454]
[1733106905708,0.10454003,97644.0,97634.0,0.0454]
[1733106905924,0.2075564,97645.0,97640.0,0.204833]
[1733106905925,0.0027334,97645.0,97640.0,0.204833]
[1733106906657,0.0027334,97645.0,97644.0,0.00101814]
[1733106906884,0.0027334,97645.0,97644.0,0.04981814]
[1733106907092,0.0037334,97645.0,97644.0,0.05081814]
[1733106907323,0.0017334,97645.0,97644.0,0.04981814]
[1733106907537,0.0047334,97645.0,97644.0,0.04981814]
[1733106907968,0.0017334,97645.0,97644.0,0.04981814]
[1733106908198,0.0027334,97645.0,97644.0,0.04981814]
[1733106911383,0.0027334,97645.0,97644.0,0.13051814]
[1733106911594,0.0027334,97645.0,97644.0,0.13233067]
[1733106911820,0.0017334,97645.0,97644.0,0.13233067]
[1733106912743,0.0017334,97645.0,97644.0,0.13333067]
[1733106913631,0.0017334,97645.0,97644.0,0.13433067]
[1733106913838,0.0017334,97645.0,97644.0,0.13233067]
[1733106914361,0.0027334,97645.0,97644.0,0.13433067]
[1733106918885,0.0027334,97645.0,97644.0,0.28433055]
[1733106919002,0.0027334,97645.0,97644.0,0.28251814]
[1733106919670,0.0027334,97645.0,97644.0,5.33251814]
[1733106919896,0.0027334,97645.0,97644.0,5.43536335]
[1733106920328,0.0027334,97645.0,97644.0,2.42636335]
[1733106920972,0.0027334,97645.0,97644.0,0.28251814]
[1733106927059,0.0027334,97645.0,97644.0,0.23371814]
[1733106927314,0.0027334,97645.0,97644.0,0.00301814]
[1733106927558,0.0027334,97645.0,97644.0,0.002]
[1733106927756,0.0027334,97645.0,97644.0,0.00301814]
[1733106928390,0.0017334,97645.0,97644.0,0.00201814]
[1733106928843,0.0017334,97645.0,97644.0,0.00301814]
[1733106929042,0.0017334,97645.0,97644.0,0.00201814]
[1733106929251,0.0017334,97645.0,97644.0,0.00301814]
[1733106930133,0.0017334,97645.0,97644.0,0.00201814]
[1733106930582,0.0017334,97645.0,97643.0,0.00101814]
[1733106930835,0.0017334,97645.0,97644.0,0.001]
[1733106931718,0.0017334,97645.0,97644.0,0.002]
[1733106931945,0.00416463,97645.0,97644.0,0.001]
[1733106932198,0.0017334,97645.0,97644.0,0.001]
[1733106932618,0.003726,97645.0,97643.0,0.00101814]
[1733106932847,0.003726,97645.0,97644.0,0.001]
[1733106933285,0.003726,97645.0,97644.0,0.002]
[1733106933512,0.003726,97645.0,97644.0,0.001]
[1733106933722,0.003726,97645.0,97643.0,0.00201814]
[1733106933941,0.003726,97645.0,97643.0,0.00301814]
[1733106934155,0.003726,97645.0,97643.0,0.00201814]
[1733106934384,0.003726,97645.0,97643.0,0.00101814]
[1733106934592,0.003726,97645.0,97644.0,0.001]
[1733106934832,0.00542082,97645.0,97641.0,0.25]
[1733106935048,0.00169482,97644.0,97641.0,0.25]
[1733106935298,0.003726,97645.0,97643.0,0.001]
[1733106935299,0.0017334,97645.0,97643.0,0.001]
[1733106936179,0.0017334,97645.0,97643.0,0.002]
[1733106936441,0.0017334,97645.0,97643.0,0.001]
[1733106936614,0.0017334,97645.0,97641.0,0.25]